fUST/lending_fUST_20250724
["ID","MTS","AMOUNT","RATE_DAILY","PERIOD"]
[374526095,1753337436314,-460.0,0.00019178,2]
[374526096,1753337436323,-460.0,0.00019178,2]
[374526097,1753337436332,-460.0,0.00019178,2]
[374526098,1753337436342,-460.0,0.00019178,2]
[374526099,1753337436353,-460.0,0.00019178,2]
[374526100,1753337436373,-460.0,0.00019178,2]
[374526101,1753337436382,-460.0,0.00019178,2]
[374526102,1753337436392,-460.0,0.00019178,2]
[374526103,1753337436401,-460.0,0.00019178,2]
[374526104,1753337436411,-460.0,0.00019178,2]
[374526105,1753337436420,-461.16073628,0.00019178,2]
[374526106,1753337436429,-460.0,0.00019178,2]
[374526107,1753337436438,-657.64,0.00019178,2]
[374526108,1753337436448,-460.0,0.00019178,2]
[374526109,1753337436457,-460.0,0.00019178,2]
[374526110,1753337436467,-460.0,0.00019178,2]
[374526111,1753337436477,-500.0,0.00019178,2]
[374526112,1753337436486,-500.0,0.00019178,2]
[374526113,1753337436495,-460.0,0.00019178,2]
[374526114,1753337436504,-500.0,0.00019178,2]
[374526115,1753337436514,-460.0,0.00019178,2]
[374526116,1753337436524,-460.0,0.00019178,2]
[374526117,1753337436533,-460.0,0.00019178,2]
[374526118,1753337436543,-163.41295864,0.00019178,2]
[374526119,1753337436552,-460.0,0.00019178,2]
[374526120,1753337436562,-460.0,0.00019178,2]
[374526121,1753337436571,-460.0,0.00019178,2]
[374526122,1753337436580,-460.0,0.00019178,2]
[374526123,1753337436591,-460.0,0.00019178,2]
[374526124,1753337436604,-460.0,0.00019178,2]
[374526125,1753337436614,-460.0,0.00019178,2]
[374526126,1753337436623,-460.0,0.00019178,2]
[374526127,1753337436634,-500.0,0.00019178,2]
[374526128,1753337436643,-460.0,0.00019178,2]
[374526129,1753337436652,-460.59216395,0.00019178,2]
[374526130,1753337436662,-460.0,0.00019178,2]
[374526131,1753337436671,-460.0,0.00019178,2]
[374526132,1753337436681,-460.0,0.00019178,2]
[374526133,1753337436804,-460.0,0.00019178,2]
[374526134,1753337436815,-460.0,0.00019178,2]
[374526135,1753337436826,-460.0,0.00019178,2]
[374526136,1753337436836,-461.30399072,0.00019178,2]
[374526137,1753337436849,-460.0,0.00019178,2]
[374526138,1753337436859,-460.0,0.00019178,2]
[374526139,1753337436869,-551.28152601,0.00019178,2]
[374526140,1753337436879,-167.79863066,0.00019178,2]
[374526141,1753337436888,-460.0,0.00019178,2]
[374526142,1753337436898,-460.0,0.00019178,2]
[374526143,1753337436907,-460.0,0.00019178,2]
[374526144,1753337436916,-460.0,0.00019178,2]
[374526145,1753337436926,-460.0,0.00019178,2]
[374526146,1753337436935,-538.11110649,0.00019178,2]
[374526147,1753337436944,-460.0,0.00019178,2]
[374526148,1753337436954,-460.0,0.00019178,2]
[374526149,1753337436963,-460.0,0.00019178,2]
[374526150,1753337436972,-464.67403599,0.00019178,2]
[374526151,1753337436982,-460.0,0.00019178,2]
[374526152,1753337436991,-460.0,0.00019178,2]
[374526153,1753337437000,-460.0,0.00019178,2]
[374526154,1753337437009,-460.0,0.00019178,2]
[374526155,1753337437019,-460.0,0.00019178,2]
[374526156,1753337437028,-460.0,0.00019178,2]
[374526157,1753337437037,-460.0,0.00019178,2]
[374526158,1753337437046,-460.0,0.00019178,2]
[374526159,1753337437057,-460.0,0.00019178,2]
[374526160,1753337437066,-460.0,0.00019178,2]
[374526161,1753337437075,-460.0,0.00019178,2]
[374526162,1753337437085,-460.0,0.00019178,2]
[374526163,1753337437095,-460.0,0.00019178,2]
[374526164,1753337437107,-460.0,0.00019178,2]
[374526165,1753337437117,-461.31978762,0.00019178,2]
[374526166,1753337437127,-100.88088098,0.00019178,2]
[374526167,1753337437236,-359.11911902,0.00019178,2]
[374526168,1753337437246,-460.68319525,0.00019178,2]
[374526169,1753337437256,-460.0,0.00019178,2]
[374526170,1753337437265,-460.0,0.00019178,2]
[374526171,1753337437275,-460.0,0.00019178,2]
[374526172,1753337437284,-460.0,0.00019178,2]
[374526173,1753337437294,-460.0,0.00019178,2]
[374526174,1753337437303,-460.0,0.00019178,2]
[374526175,1753337437313,-460.0,0.00019178,2]
[374526176,1753337437322,-460.0,0.00019178,2]
[374526177,1753337437331,-460.0,0.00019178,2]
[374526178,1753337437341,-460.0,0.00019178,2]
[374526179,1753337437352,-1000.0,0.00019178,2]
[374526180,1753337437361,-460.0,0.00019178,2]
[374526181,1753337437370,-460.0,0.00019178,2]
[374526182,1753337437379,-281.18009666,0.00019178,2]
[374526183,1753337437388,-460.0,0.00019178,2]
[374526184,1753337437397,-460.0,0.00019178,2]
[374526185,1753337437407,-487.29,0.00019178,2]
[374526186,1753337437416,-460.0,0.00019178,2]
[374526187,1753337437426,-460.0,0.00019178,2]
[374526188,1753337437435,-455.0,0.00019178,2]
[374526189,1753337437444,-460.0,0.00019178,2]
[374526190,1753337437453,-460.0,0.00019178,2]
[374526191,1753337437463,-460.0,0.00019178,2]
[374526192,1753337437472,-466.18987161,0.00019178,2]
[374526193,1753337437482,-460.0,0.00019178,2]
[374526194,1753337437491,-461.56669022,0.00019178,2]
[374526195,1753337437500,-460.0,0.00019178,2]
[374526196,1753337437510,-460.0,0.00019178,2]
[374526197,1753337437519,-460.0,0.00019178,2]
[374526198,1753337437528,-460.0,0.00019178,2]
[374526199,1753337437537,-460.0,0.00019178,2]
[374526200,1753337437546,-460.0,0.00019178,2]
[374526201,1753337437556,-461.23990033,0.00019178,2]
[374526202,1753337437566,-460.0,0.00019178,2]
[374526203,1753337437575,-460.0,0.00019178,2]
[374526204,1753337437583,-460.0,0.00019178,2]
[374526205,1753337437592,-460.94885913,0.00019178,2]
[374526206,1753337437604,-460.0,0.00019178,2]
[374526207,1753337437613,-460.0,0.00019178,2]
[374526208,1753337437623,-462.18147187,0.00019178,2]
[374526209,1753337437632,-698.24,0.00019178,2]
[374526210,1753337437642,-460.0,0.00019178,2]
[374526211,1753337437651,-805.1,0.00019178,2]
[374526212,1753337437661,-460.0,0.00019178,2]
[374526213,1753337437670,-460.0,0.00019178,2]
[374526214,1753337437679,-460.0,0.00019178,2]
[374526215,1753337437689,-460.0,0.00019178,2]
[374526216,1753337437698,-460.0,0.00019178,2]
[374526217,1753337437707,-460.99306333,0.00019178,2]
[374526218,1753337437717,-460.0,0.00019178,2]
[374526219,1753337437727,-460.0,0.00019178,2]
[374526220,1753337437736,-460.0,0.00019178,2]
[374526223,1753337437745,-460.0,0.00019178,2]
[374526224,1753337437755,-460.0,0.00019178,2]
[374526225,1753337437765,-163.83793952,0.00019178,2]
[374526226,1753337437774,-464.27552028,0.00019178,2]
[374526228,1753337437787,-460.0,0.00019178,2]
[374526230,1753337437797,-460.52595215,0.00019178,2]
[374526231,1753337437806,-460.0,0.00019178,2]
[374526232,1753337437816,-460.0,0.00019178,2]
[374526233,1753337437825,-460.0,0.00019178,2]
[374526234,1753337437835,-460.0,0.00019178,2]
[374526235,1753337437845,-281.07652082,0.00019178,2]
[374526236,1753337437859,-460.0,0.00019178,2]
[374526237,1753337437870,-460.0,0.00019178,2]
[374526238,1753337437879,-460.0,0.00019178,2]
[374526239,1753337437889,-460.0,0.00019178,2]
[374526240,1753337437898,-460.93386622,0.00019178,2]
[374526241,1753337437907,-460.0,0.00019178,2]
[374526242,1753337437917,-460.0,0.00019178,2]
[374526243,1753337437926,-460.0,0.00019178,2]
[374526244,1753337437936,-627.59,0.00019178,2]
[374526245,1753337437946,-460.0,0.00019178,2]
[374526246,1753337437957,-460.0,0.00019178,2]
[374526247,1753337437967,-460.0,0.00019178,2]
[374526248,1753337437976,-576.21582551,0.00019178,2]
[374526251,1753337437985,-460.0,0.00019178,2]
[374526253,1753337437994,-460.0,0.00019178,2]
[374526255,1753337438003,-460.0,0.00019178,2]
[374526257,1753337438012,-460.0,0.00019178,2]
[374526258,1753337438022,-460.0,0.00019178,2]
[374526259,1753337438031,-460.0,0.00019178,2]
[374526260,1753337438040,-460.0,0.00019178,2]
[374526261,1753337438050,-460.0,0.00019178,2]
[374526262,1753337438058,-460.0,0.00019178,2]
[374526263,1753337438067,-460.0,0.00019178,2]
[374526264,1753337438077,-460.0,0.00019178,2]
[374526265,1753337438086,-460.0,0.00019178,2]
[374526266,1753337438098,-565.51565083,0.00019178,2]
[374526267,1753337438107,-460.0,0.00019178,2]
[374526268,1753337438118,-460.0,0.00019178,2]
[374526269,1753337438128,-460.0,0.00019178,2]
[374526270,1753337438137,-460.0,0.00019178,2]
[374526271,1753337438146,-460.0,0.00019178,2]
[374526272,1753337438156,-460.0,0.00019178,2]
[374526273,1753337438165,-500.0,0.00019178,2]
[374526274,1753337438174,-209.437957,0.00019178,2]
[374526275,1753337438184,-666.0,0.00019178,2]
[374526276,1753337438193,-358.26851124,0.00019373,2]
[374526277,1753337438203,-460.0,0.00019452,2]
[374526278,1753337438212,-460.0,0.00019452,2]
[374526279,1753337438221,-460.0,0.00019452,2]
[374526280,1753337438231,-460.0,0.00019452,2]
[374526281,1753337438240,-461.61087008,0.00019452,2]
[374526282,1753337438250,-460.0,0.00019452,2]
[374526283,1753337438259,-460.0,0.00019452,2]
[374526284,1753337438268,-174.7614543,0.00019452,2]
[374526285,1753337438277,-460.0,0.00019452,2]
[374526286,1753337438286,-460.0,0.00019452,2]
[374526287,1753337438295,-1077.63,0.00019452,2]
[374526288,1753337438304,-151.0,0.00019452,2]
[374526289,1753337438314,-151.77259868,0.00019452,2]
[374526290,1753337438324,-151.0,0.00019452,2]
[374526291,1753337438333,-460.0,0.00019452,2]
[374526292,1753337438343,-460.0,0.00019452,2]
[374526293,1753337438353,-469.14287676,0.00019452,2]
[374526294,1753337438363,-609.62707446,0.00019452,2]
[374526295,1753337438372,-462.00428462,0.00019452,2]
[374526296,1753337438382,-460.0,0.00019452,2]
[374526297,1753337438391,-460.0,0.00019452,2]
[374526298,1753337438401,-460.0,0.00019452,2]
[374526300,1753337438410,-460.0,0.00019452,2]
[374526301,1753337438420,-981.14,0.00019452,2]
[374526302,1753337438429,-460.0,0.00019452,2]
[374526303,1753337438439,-462.06136971,0.00019452,2]
[374526304,1753337438448,-590.0,0.00019452,2]
[374526306,1753337438458,-361.01059153,0.00019452,2]
[374526307,1753337438467,-460.0,0.00019452,2]
[374526308,1753337438477,-460.0,0.00019452,2]
[374526310,1753337438486,-657.48,0.00019452,2]
[374526311,1753337438495,-804.0,0.00019452,2]
[374526312,1753337438505,-337.69784731,0.00019452,2]
[374526313,1753337438514,-460.0,0.00019452,2]
[374526314,1753337438523,-460.0,0.00019452,2]
[374526315,1753337438533,-460.0,0.00019452,2]
[374526316,1753337438542,-657.64,0.00019452,2]
[374526317,1753337438552,-460.0,0.00019452,2]
[374526318,1753337438561,-460.0,0.00019452,2]
[374526319,1753337438570,-460.0,0.00019452,2]
[374526320,1753337438580,-151.0,0.00019452,2]
[374526321,1753337438589,-460.0,0.00019452,2]
[374526322,1753337438600,-460.0,0.00019452,2]
[374526323,1753337438610,-460.0,0.00019452,2]
[374526324,1753337438619,-460.0,0.00019452,2]
[374526325,1753337438628,-460.0,0.00019452,2]
[374526326,1753337438637,-460.0,0.00019452,2]
[374526327,1753337438646,-460.0,0.00019452,2]
[374526328,1753337438656,-460.0,0.00019452,2]
[374526329,1753337438665,-460.0,0.00019452,2]
[374526330,1753337438675,-460.0,0.00019452,2]
[374526331,1753337438684,-460.0,0.00019452,2]
[374526332,1753337438694,-243.11808252,0.00019452,2]
[374526333,1753337438703,-460.0,0.00019452,2]
[374526334,1753337438713,-460.0,0.00019452,2]
[374526336,1753337438723,-460.0,0.00019452,2]
[374526337,1753337438732,-460.0,0.00019452,2]
[374526338,1753337438742,-460.0,0.00019452,2]
[374526339,1753337438752,-460.0,0.00019452,2]
[374526340,1753337438761,-460.0,0.00019452,2]
[374526341,1753337438770,-156.55366538,0.00019452,2]
[374526342,1753337438781,-460.0,0.00019452,2]
[374526343,1753337438791,-151.0,0.00019452,2]
[374526344,1753337438800,-487.29,0.00019452,2]
[374526345,1753337438810,-222.72606211,0.00019452,2]
[374526346,1753337438819,-460.0,0.00019452,2]
[374526347,1753337438829,-460.0,0.00019452,2]
[374526348,1753337438839,-460.0,0.00019452,2]
[374526350,1753337438849,-460.0,0.00019452,2]
[374526351,1753337438860,-460.0,0.00019452,2]
[374526353,1753337438870,-460.0,0.00019452,2]
[374526356,1753337438880,-460.0,0.00019452,2]
[374526357,1753337438889,-460.0,0.00019452,2]
[374526359,1753337438899,-460.0,0.00019452,2]
[374526361,1753337438908,-698.24,0.00019452,2]
[374526363,1753337438917,-805.1,0.00019452,2]
[374526365,1753337438926,-460.0,0.00019452,2]
[374526367,1753337438936,-460.0,0.00019452,2]
[374526370,1753337438946,-460.0,0.00019452,2]
[374526372,1753337438956,-460.0,0.00019452,2]
[374526374,1753337438965,-460.0,0.00019452,2]
[374526376,1753337438975,-460.0,0.00019452,2]
[374526377,1753337438984,-460.0,0.00019452,2]
[374526380,1753337438994,-460.0,0.00019452,2]
[374526381,1753337439003,-217.75760405,0.00019452,2]
[374526383,1753337439012,-627.59,0.00019452,2]
[374526385,1753337439022,-460.0,0.00019452,2]
[374526387,1753337439031,-467.56894109,0.00019452,2]
[374526390,1753337439041,-460.0,0.00019452,2]
[374526391,1753337439050,-460.0,0.00019452,2]
[374526394,1753337439059,-460.0,0.00019452,2]
[374526395,1753337439069,-460.0,0.00019452,2]
[374526398,1753337439079,-460.0,0.00019452,2]
[374526400,1753337439088,-460.0,0.00019452,2]
[374526402,1753337439100,-506.18400307,0.00019473,2]
[374526404,1753337439109,-353.67501593,0.00019473,2]
[374526405,1753337439118,-500.0,0.00019473,2]
[374526407,1753337439126,-241.23808633,0.00019473,2]
[374526409,1753337439135,-500.0,0.00019473,2]
[374526411,1753337439145,-496.95743316,0.00019473,2]
[374526413,1753337439155,-500.59208721,0.00019473,2]
[374526415,1753337439164,-268.98453325,0.00019473,2]
[374526417,1753337439173,-563.8119144,0.00019626,2]
[374526419,1753337439187,-5899.59612862,0.00019626,2]
[374526421,1753337439196,-590.0,0.00019726,2]
[374526423,1753337439206,-804.0,0.00019726,2]
[374526424,1753337439215,-151.0,0.00019726,2]
[374526426,1753337439225,-1077.63,0.00019726,2]
[374526428,1753337439234,-981.14,0.00019726,2]
[374526430,1753337439243,-460.0,0.00019726,2]
[374526432,1753337439253,-460.0,0.00019726,2]
[374526434,1753337439264,-657.48,0.00019726,2]
[374526436,1753337439274,-460.0,0.00019726,2]
[374526438,1753337439283,-460.0,0.00019726,2]
[374526440,1753337439292,-657.64,0.00019726,2]
[374526442,1753337439301,-505.18,0.00019726,2]
[374526444,1753337439311,-460.0,0.00019726,2]
[374526446,1753337439320,-460.0,0.00019726,2]
[374526448,1753337439329,-460.0,0.00019726,2]
[374526450,1753337439338,-460.0,0.00019726,2]
[374526452,1753337439351,-460.0,0.00019726,2]
[374526454,1753337439360,-281.22,0.00019726,2]
[374526456,1753337439369,-460.0,0.00019726,2]
[374526458,1753337439379,-460.0,0.00019726,2]
[374526460,1753337439388,-460.0,0.00019726,2]
[374526462,1753337439397,-460.0,0.00019726,2]
[374526463,1753337439406,-460.0,0.00019726,2]
[374526466,1753337439416,-460.0,0.00019726,2]
[374526468,1753337439426,-487.29,0.00019726,2]
[374526469,1753337439436,-460.0,0.00019726,2]
[374526471,1753337439445,-43.75293195,0.00019726,2]
[374526484,1753337439573,-461.03300203,0.00019178,2]
[374526485,1753337439582,-460.0,0.00019178,2]
[374526486,1753337439591,-460.0,0.00019178,2]
[374526487,1753337439603,-354.64775824,0.00019178,2]
[374526488,1753337439612,-460.0,0.00019452,2]
[374526489,1753337439621,-416.24706805,0.00019726,2]
[374526490,1753337439630,-460.0,0.00019726,2]
[374526492,1753337439754,-460.0,0.00019726,2]
[374526493,1753337439764,-460.0,0.00019726,2]
[374526494,1753337439773,-460.0,0.00019726,2]
[374526495,1753337439786,-460.0,0.00019726,2]
[374526496,1753337439795,-698.24,0.00019726,2]
[374526497,1753337439805,-805.1,0.00019726,2]
[374526498,1753337439814,-460.0,0.00019726,2]
[374526499,1753337439823,-460.0,0.00019726,2]
[374526500,1753337439832,-460.0,0.00019726,2]
[374526501,1753337439841,-460.0,0.00019726,2]
[374526502,1753337439855,-306.67821657,0.00019726,2]
[374526503,1753337439865,-460.0,0.00019726,2]
[374526504,1753337439875,-627.59,0.00019726,2]
[374526505,1753337439885,-460.0,0.00019726,2]
[374526506,1753337439895,-460.0,0.00019726,2]
[374526507,1753337439905,-91958.85874478,0.0001999,2]
[374526508,1753337439914,-590.0,0.0002,2]
[374526510,1753337439923,-804.0,0.0002,2]
[374526511,1753337439932,-151.0,0.0002,2]
[374526512,1753337439942,-1077.63,0.0002,2]
[374526513,1753337439953,-981.14,0.0002,2]
[374526515,1753337439962,-460.0,0.0002,2]
[374526518,1753337439971,-460.0,0.0002,2]
[374526520,1753337439981,-657.48,0.0002,2]
[374526522,1753337439991,-460.0,0.0002,2]
[374526525,1753337440000,-460.0,0.0002,2]
[374526528,1753337440010,-657.64,0.0002,2]
[374526531,1753337440020,-505.18,0.0002,2]
[374526534,1753337440030,-460.0,0.0002,2]
[374526536,1753337440040,-460.0,0.0002,2]
[374526538,1753337440049,-460.0,0.0002,2]
[374526540,1753337440059,-460.0,0.0002,2]
[374526542,1753337440068,-460.0,0.0002,2]
[374526544,1753337440078,-460.0,0.0002,2]
[374526546,1753337440087,-487.29,0.0002,2]
[374526548,1753337440096,-460.0,0.0002,2]
[374526551,1753337440109,-460.0,0.0002,2]
[374526553,1753337440118,-460.0,0.0002,2]
[374526555,1753337440127,-460.0,0.0002,2]
[374526557,1753337440137,-460.0,0.0002,2]
[374526558,1753337440146,-460.0,0.0002,2]
[374526560,1753337440156,-698.24,0.0002,2]
[374526562,1753337440168,-805.1,0.0002,2]
[374526565,1753337440180,-460.0,0.0002,2]
[374526566,1753337440190,-442.80389605,0.0002,2]
[374526568,1753337440199,-627.59,0.0002,2]
[374526570,1753337440208,-460.0,0.0002,2]
[374526572,1753337440218,-460.0,0.0002,2]
[374526574,1753337440227,-281.0996548,0.00020021,2]
[374526576,1753337440237,-215.648059,0.00020187,2]
[374526578,1753337440246,-1077.63,0.00020273,2]
[374526580,1753337440256,-981.14,0.00020273,2]
[374526582,1753337440265,-460.0,0.00020273,2]
[374526584,1753337440276,-460.0,0.00020273,2]
[374526586,1753337440286,-657.48,0.00020273,2]
[374526589,1753337440296,-460.0,0.00020273,2]
[374526591,1753337440306,-460.0,0.00020273,2]
[374526592,1753337440316,-657.64,0.00020273,2]
[374526594,1753337440326,-505.18,0.00020273,2]
[374526597,1753337440335,-460.0,0.00020273,2]
[374526598,1753337440345,-460.0,0.00020273,2]
[374526600,1753337440357,-460.0,0.00020273,2]
[374526602,1753337440366,-460.0,0.00020273,2]
[374526604,1753337440376,-487.29,0.00020273,2]
[374526606,1753337440385,-460.0,0.00020273,2]
[374526608,1753337440394,-460.0,0.00020273,2]
[374526610,1753337440403,-460.0,0.00020273,2]
[374526612,1753337440413,-460.0,0.00020273,2]
[374526614,1753337440423,-698.24,0.00020273,2]
[374526616,1753337440432,-805.1,0.00020273,2]
[374526618,1753337440442,-460.0,0.00020273,2]
[374526620,1753337440451,-627.59,0.00020273,2]
[374526622,1753337440460,-460.0,0.00020273,2]
[374526624,1753337440470,-460.0,0.00020273,2]
[374526626,1753337440481,-590.0,0.00020274,2]
[374526628,1753337440491,-804.0,0.00020274,2]
[374526630,1753337440501,-227.024933,0.00020274,2]
[374526632,1753337440510,-526.24749348,0.00020354,2]
[374526634,1753337440520,-215.88777038,0.00020354,2]
[374526636,1753337440529,-231.16387093,0.00020354,2]
[374526638,1753337440538,-160.0,0.00020354,2]
[374526640,1753337440547,-214.7213231,0.00020354,2]
[374526642,1753337440557,-160.0,0.00020354,2]
[374526644,1753337440566,-160.0,0.00020354,2]
[374526646,1753337440575,-840.23756827,0.00020354,2]
[374526648,1753337440585,-160.0,0.00020354,2]
[374526650,1753337440594,-476.79463412,0.00020354,2]
[374526652,1753337440606,-363.12,0.00020538,3]
[374526654,1753337440615,-1077.63,0.00020547,2]
[374526655,1753337440625,-981.14,0.00020547,2]
[374526658,1753337440635,-460.0,0.00020547,2]
[374526659,1753337440644,-460.0,0.00020547,2]
[374526661,1753337440654,-657.48,0.00020547,2]
[374526663,1753337440663,-460.0,0.00020547,2]
[374526665,1753337440673,-460.0,0.00020547,2]
[374526666,1753337440683,-657.64,0.00020547,2]
[374526667,1753337440692,-505.18,0.00020547,2]
[374526668,1753337440702,-460.0,0.00020547,2]
[374526669,1753337440711,-460.0,0.00020547,2]
[374526671,1753337440722,-498.28964514,0.00020547,2]
[374526673,1753337440731,-460.0,0.00020547,2]
[374526675,1753337440740,-487.29,0.00020547,2]
[374526677,1753337440750,-460.0,0.00020547,2]
[374526678,1753337440759,-460.0,0.00020547,2]
[374526679,1753337440769,-698.24,0.00020547,2]
[374526680,1753337440779,-805.1,0.00020547,2]
[374526681,1753337440792,-460.0,0.00020547,2]
[374526682,1753337440802,-627.59,0.00020547,2]
[374526683,1753337440811,-590.0,0.00020548,2]
[374526684,1753337440821,-804.0,0.00020548,2]
[374526685,1753337440832,-160.0,0.00020643,2]
[374526686,1753337440842,-277.30195031,0.00020792,2]
[374526687,1753337440859,-142.69804969,0.00020792,2]
[374526688,1753337440870,-460.0,0.0002082,2]
[374526689,1753337440880,-460.0,0.0002082,2]
[374526690,1753337440890,-467.6280778,0.0002082,2]
[374526691,1753337440900,-461.56873654,0.0002082,2]
[374526692,1753337440910,-460.0,0.0002082,2]
[374526693,1753337440918,-460.0,0.0002082,2]
[374526694,1753337440927,-460.0,0.0002082,2]
[374526695,1753337440937,-476.99198081,0.0002082,2]
[374526696,1753337440949,-522.24915876,0.0002082,2]
[374526697,1753337440967,-9.57385005,0.0002082,2]
[374526698,1753337440976,-500.0,0.0002082,2]
[374526699,1753337440986,-405.47614954,0.00020821,2]
[374526700,1753337440999,-672.15385046,0.00020821,2]
[374526701,1753337441008,-981.14,0.00020821,2]
[374526702,1753337441017,-416.27353254,0.00020821,2]
[374526703,1753337441030,-43.72646746,0.00020821,2]
[374526704,1753337441039,-657.48,0.00020821,2]
[374526705,1753337441048,-430.61692231,0.00020821,2]
[374526706,1753337441058,-460.0,0.00020821,2]
[374526707,1753337441068,-657.64,0.00020821,2]
[374526708,1753337441077,-505.18,0.00020821,2]
[374526709,1753337441087,-460.0,0.00020821,2]
[374526710,1753337441097,-460.0,0.00020821,2]
[374526711,1753337441109,-460.0,0.00020821,2]
[374526712,1753337441119,-487.29,0.00020821,2]
[374526713,1753337441128,-169.65610676,0.00020821,2]
[374526714,1753337441140,-290.34389324,0.00020821,2]
[374526715,1753337441150,-306.40724189,0.00020821,2]
[374526716,1753337441160,-698.24,0.00020821,2]
[374526717,1753337441171,-805.1,0.00020821,2]
[374526718,1753337441180,-460.0,0.00020821,2]
[374526719,1753337441189,-627.59,0.00020821,2]
[374526720,1753337441199,-590.0,0.00020822,2]
[374526721,1753337441208,-804.0,0.00020822,2]
[374526722,1753337441218,-480.834,0.00020826,2]
[374526723,1753337441228,-424.0,0.00020912,4]
[374526724,1753337441237,-395.75,0.00021029,2]
[374526725,1753337441246,-500.0,0.00021064,2]
[374526726,1753337441257,-463.7885405,0.00021094,2]
[374526727,1753337441266,-548.85813481,0.00021094,2]
[374526728,1753337441275,-460.0,0.00021094,2]
[374526729,1753337441285,-1077.63,0.00021095,2]
[374526730,1753337441294,-981.14,0.00021095,2]
[374526731,1753337441304,-460.0,0.00021095,2]
[374526732,1753337441313,-657.48,0.00021095,2]
[374526733,1753337441323,-460.0,0.00021095,2]
[374526734,1753337441332,-657.64,0.00021095,2]
[374526735,1753337441342,-505.18,0.00021095,2]
[374526736,1753337441353,-460.0,0.00021095,2]
[374526737,1753337441363,-460.0,0.00021095,2]
[374526738,1753337441372,-460.0,0.00021095,2]
[374526739,1753337441383,-487.29,0.00021095,2]
[374526740,1753337441393,-460.0,0.00021095,2]
[374526741,1753337441402,-698.24,0.00021095,2]
[374526742,1753337441412,-805.1,0.00021095,2]
[374526743,1753337441422,-460.0,0.00021095,2]
[374526744,1753337441432,-627.59,0.00021095,2]
[374526745,1753337441442,-590.0,0.00021096,2]
[374526746,1753337441451,-804.0,0.00021096,2]
[374526747,1753337441461,-260.0,0.00021191,2]
[374526748,1753337441471,-424.0,0.00021275,4]
[374526749,1753337441481,-407.0,0.00021354,2]
[374526750,1753337441490,-421.197,0.00021354,2]
[374526751,1753337441500,-1077.63,0.00021369,2]
[374526752,1753337441510,-981.14,0.00021369,2]
[374526753,1753337441519,-460.0,0.00021369,2]
[374526754,1753337441528,-657.48,0.00021369,2]
[374526755,1753337441538,-460.0,0.00021369,2]
[374526757,1753337441548,-657.64,0.00021369,2]
[374526759,1753337441557,-505.18,0.00021369,2]
[374526760,1753337441567,-460.0,0.00021369,2]
[374526761,1753337441576,-460.0,0.00021369,2]
[374526762,1753337441586,-460.0,0.00021369,2]
[374526763,1753337441596,-487.29,0.00021369,2]
[374526764,1753337441607,-460.0,0.00021369,2]
[374526765,1753337441616,-698.24,0.00021369,2]